[Event "*** MasterClass Titled Tuesday Blitz"]
[Site "Chess.com"]
[Date "2017.11.07"]
[Round "5"]
[White "florianschwabeneder"]
[Black "Margency"]
[Result "1-0"]
[WhiteElo "2435"]
[BlackElo "2506"]
[TimeControl "180+2"]
[EndTime "15:14:52 PST"]
[Termination "florianschwabeneder won by resignation"]

1. e4 {[%clk 0:03:01.9]} 1... d5 {[%clk 0:02:53.1]} 2. exd5 {[%clk 0:03:02.1]}
2... Qxd5 {[%clk 0:02:55]} 3. Nc3 {[%clk 0:03:02.7]} 3... Qd6 {[%clk 0:02:56.3]}
4. d4 {[%clk 0:03:03.3]} 4... Nf6 {[%clk 0:02:57.3]} 5. Nf3 {[%clk 0:03:04.4]}
5... c6 {[%clk 0:02:58.9]} 6. g3 {[%clk 0:03:05.4]} 6... Bg4 {[%clk 0:02:59.9]}
7. Bg2 {[%clk 0:03:06.5]} 7... e6 {[%clk 0:03:01.3]} 8. O-O {[%clk 0:03:05.8]}
8... Nbd7 {[%clk 0:03:02.3]} 9. h3 {[%clk 0:03:00.6]} 9... Bxf3 {[%clk
0:03:02.8]} 10. Bxf3 {[%clk 0:03:00.6]} 10... Qc7 {[%clk 0:03:03.1]} 11. Ne2
{[%clk 0:02:56.7]} 11... Bd6 {[%clk 0:03:02.8]} 12. c4 {[%clk 0:02:54.6]} 12...
O-O {[%clk 0:03:03.4]} 13. Be3 {[%clk 0:02:37.6]} 13... Rad8 {[%clk 0:03:02.4]}
14. Qc2 {[%clk 0:02:37.4]} 14... e5 {[%clk 0:02:59.1]} 15. c5 {[%clk 0:02:23.4]}
15... Be7 {[%clk 0:02:58]} 16. b4 {[%clk 0:02:23.8]} 16... exd4 {[%clk
0:02:50.6]} 17. Nxd4 {[%clk 0:02:22.8]} 17... Ne5 {[%clk 0:02:50.9]} 18. Bg2
{[%clk 0:02:13.2]} 18... Nd5 {[%clk 0:02:50.9]} 19. Bxd5 {[%clk 0:01:33.7]}
19... Rxd5 {[%clk 0:02:50.6]} 20. Kg2 {[%clk 0:01:29.8]} 20... Rfd8 {[%clk
0:02:49.9]} 21. Nf5 {[%clk 0:01:28.6]} 21... Bf6 {[%clk 0:02:44.5]} 22. Rad1
{[%clk 0:01:28.2]} 22... Qd7 {[%clk 0:02:41.6]} 23. Nd6 {[%clk 0:01:09.1]} 23...
Rxd1 {[%clk 0:02:22.6]} 24. Rxd1 {[%clk 0:01:09.7]} 24... b5 {[%clk 0:02:23.2]}
25. cxb6 {[%clk 0:00:58.9]} 25... axb6 {[%clk 0:02:23.7]} 26. Bxb6 {[%clk
0:00:59.9]} 26... Ra8 {[%clk 0:02:24]} 27. a4 {[%clk 0:00:51]} 27... h5 {[%clk
0:01:53.9]} 28. a5 {[%clk 0:00:23.5]} 28... h4 {[%clk 0:01:51.2]} 29. Ne4 {[%clk
0:00:23.3]} 29... Qf5 {[%clk 0:01:47.1]} 30. Nxf6+ {[%clk 0:00:24]} 30... Qxf6
{[%clk 0:01:48]} 31. Qe4 {[%clk 0:00:24.9]} 31... hxg3 {[%clk 0:01:45.8]} 32.
fxg3 {[%clk 0:00:25.6]} 32... Re8 {[%clk 0:01:31.3]} 33. Re1 {[%clk 0:00:19.6]}
33... Qd6 {[%clk 0:01:12.7]} 34. Bc5 {[%clk 0:00:16]} 34... Qd2+ {[%clk
0:01:06.7]} 35. Re2 {[%clk 0:00:17.3]} 35... Qd1 {[%clk 0:01:06.9]} 36. a6
{[%clk 0:00:17.4]} 36... Qa4 {[%clk 0:01:04.4]} 37. a7 {[%clk 0:00:16.7]} 37...
f6 {[%clk 0:01:05]} 38. Qc2 {[%clk 0:00:12.8]} 38... Qa6 {[%clk 0:01:04.7]} 39.
Qa2+ {[%clk 0:00:13.5]} 39... Qxa2 {[%clk 0:01:02.4]} 40. Rxa2 {[%clk 0:00:15]}
40... Ra8 {[%clk 0:01:03.6]} 41. Ra6 {[%clk 0:00:13.6]} 41... Kf7 {[%clk
0:01:03.6]} 42. Ra2 {[%clk 0:00:11.9]} 42... Ke6 {[%clk 0:01:04.2]} 43. Rd2
{[%clk 0:00:10.2]} 43... Kf5 {[%clk 0:01:00.9]} 44. Rd6 {[%clk 0:00:08.8]} 44...
Ke4 {[%clk 0:01:01]} 45. Re6 {[%clk 0:00:09.7]} 45... Kd5 {[%clk 0:01:01.1]} 46.
Re7 {[%clk 0:00:09.5]} 46... g5 {[%clk 0:01:01.9]} 47. Rb7 {[%clk 0:00:10.1]}
47... Nd3 {[%clk 0:00:34.3]} 48. Rb8 {[%clk 0:00:08.9]} 48... Nxc5 {[%clk
0:00:34.3]} 49. Rxa8 {[%clk 0:00:09.9]} 49... Ne4 {[%clk 0:00:34.7]} 50. Rd8+
{[%clk 0:00:10.1]} 50... Kc4 {[%clk 0:00:36.6]} 1-0

[Event "*** MasterClass Titled Tuesday Blitz"]
[Site "Chess.com"]
[Date "2017.11.07"]
[Round "5"]
[White "chessking2151"]
[Black "Hanging_pointer"]
[Result "0-1"]
[WhiteElo "2385"]
[BlackElo "2342"]
[TimeControl "180+2"]
[EndTime "15:15:02 PST"]
[Termination "Hanging_pointer won by resignation"]

1. e4 {[%clk 0:03:01.9]} 1... c5 {[%clk 0:03:01]} 2. Nf3 {[%clk 0:03:02.3]} 2...
d6 {[%clk 0:03:02.1]} 3. d4 {[%clk 0:03:03.1]} 3... cxd4 {[%clk 0:03:04]} 4.
Nxd4 {[%clk 0:03:04.4]} 4... Nf6 {[%clk 0:03:05.4]} 5. Nc3 {[%clk 0:03:05.7]}
5... a6 {[%clk 0:03:06.7]} 6. Be3 {[%clk 0:03:06.6]} 6... e5 {[%clk 0:03:07.2]}
7. Nb3 {[%clk 0:03:07.5]} 7... Be6 {[%clk 0:03:07.7]} 8. f3 {[%clk 0:03:08.3]}
8... h5 {[%clk 0:03:08.5]} 9. Qd2 {[%clk 0:03:07]} 9... Nbd7 {[%clk 0:03:09.3]}
10. Nd5 {[%clk 0:03:07.3]} 10... Bxd5 {[%clk 0:02:56.3]} 11. exd5 {[%clk
0:03:09.2]} 11... Rc8 {[%clk 0:02:44.4]} 12. c4 {[%clk 0:03:09.5]} 12... g6
{[%clk 0:02:32.9]} 13. Na5 {[%clk 0:03:02.4]} 13... Qc7 {[%clk 0:02:33.6]} 14.
Be2 {[%clk 0:02:45.8]} 14... Ng8 {[%clk 0:02:33.3]} 15. Qb4 {[%clk 0:02:42.7]}
15... Nc5 {[%clk 0:02:07.2]} 16. O-O {[%clk 0:02:21.6]} 16... Bh6 {[%clk
0:02:08]} 17. Bf2 {[%clk 0:02:18]} 17... Nf6 {[%clk 0:02:04.6]} 18. Nb3 {[%clk
0:01:25.3]} 18... Nfd7 {[%clk 0:02:00.5]} 19. Nxc5 {[%clk 0:01:12.3]} 19... Nxc5
{[%clk 0:02:00.6]} 20. Qc3 {[%clk 0:01:09]} 20... a5 {[%clk 0:01:56.8]} 21. b3
{[%clk 0:00:57.9]} 21... O-O {[%clk 0:01:54.1]} 22. a3 {[%clk 0:00:58.2]} 22...
a4 {[%clk 0:01:39.4]} 23. b4 {[%clk 0:00:57.2]} 23... Nb3 {[%clk 0:01:40.5]} 24.
Rad1 {[%clk 0:00:49]} 24... Rfe8 {[%clk 0:01:18.4]} 25. Rfe1 {[%clk 0:00:44.9]}
25... Nd4 {[%clk 0:00:59.5]} 26. Bf1 {[%clk 0:00:39.6]} 26... b5 {[%clk
0:01:00.4]} 27. c5 {[%clk 0:00:29.9]} 27... dxc5 {[%clk 0:00:59.9]} 28. bxc5
{[%clk 0:00:31.8]} 28... Red8 {[%clk 0:00:51.8]} 29. Bxd4 {[%clk 0:00:10.8]}
29... exd4 {[%clk 0:00:49.6]} 30. Qxd4 {[%clk 0:00:12.7]} 30... Bg7 {[%clk
0:00:43.2]} 31. Qf2 {[%clk 0:00:10.6]} 31... Qxc5 {[%clk 0:00:42.8]} 32. d6
{[%clk 0:00:11.9]} 32... Qxa3 {[%clk 0:00:29.2]} 33. d7 {[%clk 0:00:12]} 33...
Rb8 {[%clk 0:00:30.2]} 34. Bxb5 {[%clk 0:00:10.9]} 34... Qb4 {[%clk 0:00:14.5]}
35. Bc6 {[%clk 0:00:10.1]} 35... a3 {[%clk 0:00:14.1]} 36. Re8+ {[%clk
0:00:10.3]} 36... Kh7 {[%clk 0:00:14.4]} 37. Rxd8 {[%clk 0:00:09.8]} 37... Rxd8
{[%clk 0:00:15.1]} 38. Qa7 {[%clk 0:00:09.6]} 38... a2 {[%clk 0:00:12]} 39. Qc7
{[%clk 0:00:08.5]} 39... Qc5+ {[%clk 0:00:07.1]} 40. Kf1 {[%clk 0:00:08]} 40...
Qc4+ {[%clk 0:00:06.4]} 41. Kf2 {[%clk 0:00:08.2]} 41... Qc2+ {[%clk 0:00:06.4]}
42. Kg3 {[%clk 0:00:06.3]} 42... Qxd1 {[%clk 0:00:05.8]} 43. Qxd8 {[%clk
0:00:07.2]} 43... a1=Q {[%clk 0:00:07]} 44. Qe8 {[%clk 0:00:04.4]} 44... Qe5+
{[%clk 0:00:06.8]} 0-1

[Event "*** MasterClass Titled Tuesday Blitz"]
[Site "Chess.com"]
[Date "2017.11.07"]
[Round "5"]
[White "gmcorrales"]
[Black "GMHess"]
[Result "1-0"]
[WhiteElo "2683"]
[BlackElo "2568"]
[TimeControl "180+2"]
[EndTime "15:15:03 PST"]
[Termination "gmcorrales won by resignation"]

1. d4 {[%clk 0:02:54]} 1... d6 {[%clk 0:03:01.9]} 2. c4 {[%clk 0:02:54.5]} 2...
g6 {[%clk 0:03:00.1]} 3. Nc3 {[%clk 0:02:55.7]} 3... Bg7 {[%clk 0:03:02]} 4. e4
{[%clk 0:02:52.9]} 4... c5 {[%clk 0:03:01.9]} 5. d5 {[%clk 0:02:53.8]} 5...
Bxc3+ {[%clk 0:03:01.1]} 6. bxc3 {[%clk 0:02:54.1]} 6... Qa5 {[%clk 0:03:02.8]}
7. Qc2 {[%clk 0:02:51.9]} 7... Nf6 {[%clk 0:03:03.8]} 8. Bd3 {[%clk 0:02:52.7]}
8... Nbd7 {[%clk 0:03:04.9]} 9. f4 {[%clk 0:02:53]} 9... Nb6 {[%clk 0:03:05.6]}
10. Nf3 {[%clk 0:02:52.6]} 10... Bg4 {[%clk 0:03:03.1]} 11. O-O {[%clk
0:02:42.5]} 11... Bxf3 {[%clk 0:03:04]} 12. Rxf3 {[%clk 0:02:44.4]} 12... Nfd7
{[%clk 0:02:57.9]} 13. a4 {[%clk 0:02:39.4]} 13... O-O-O {[%clk 0:02:58.7]} 14.
Bd2 {[%clk 0:02:37.9]} 14... e6 {[%clk 0:02:43.6]} 15. Rff1 {[%clk 0:02:36.6]}
15... exd5 {[%clk 0:02:32.4]} 16. exd5 {[%clk 0:02:38.5]} 16... Rhe8 {[%clk
0:02:19.1]} 17. Rfb1 {[%clk 0:02:38.9]} 17... a6 {[%clk 0:01:58.4]} 18. Rb2
{[%clk 0:02:39.1]} 18... Kc7 {[%clk 0:01:57.1]} 19. Rab1 {[%clk 0:02:35.6]}
19... Rb8 {[%clk 0:01:58.1]} 20. Ra2 {[%clk 0:02:28]} 20... f5 {[%clk
0:01:44.7]} 21. h3 {[%clk 0:02:27.4]} 21... Nf6 {[%clk 0:01:40.1]} 22. Be1
{[%clk 0:02:25.2]} 22... Ne4 {[%clk 0:01:29.1]} 23. Rab2 {[%clk 0:02:16.7]}
23... Nd7 {[%clk 0:01:14.3]} 24. Rb3 {[%clk 0:02:00.8]} 24... h6 {[%clk
0:01:06.5]} 25. Qb2 {[%clk 0:02:00.9]} 25... b6 {[%clk 0:01:02.8]} 26. Ra3
{[%clk 0:01:38.9]} 26... Re7 {[%clk 0:00:53.3]} 27. Qc1 {[%clk 0:01:35.5]} 27...
Rbe8 {[%clk 0:00:37.8]} 28. Rb2 {[%clk 0:01:32.3]} 28... Nef6 {[%clk 0:00:23]}
29. Bh4 {[%clk 0:01:30.4]} 29... Re3 {[%clk 0:00:22.1]} 30. Rd2 {[%clk
0:01:25.5]} 30... Ne4 {[%clk 0:00:17.9]} 31. Rd1 {[%clk 0:01:22.8]} 31... Ng3
{[%clk 0:00:15.4]} 32. Qd2 {[%clk 0:00:37.6]} 32... Ne2+ {[%clk 0:00:11.8]} 33.
Bxe2 {[%clk 0:00:27.8]} 33... Rxe2 {[%clk 0:00:13.7]} 34. Qd3 {[%clk 0:00:29.2]}
34... R8e3 {[%clk 0:00:14.7]} 35. Qb1 {[%clk 0:00:25.7]} 35... Re4 {[%clk
0:00:15]} 36. Rf1 {[%clk 0:00:22.2]} 36... Rxc4 {[%clk 0:00:14.5]} 37. Qd3
{[%clk 0:00:20.1]} 37... Ree4 {[%clk 0:00:15.7]} 38. Qg3 {[%clk 0:00:21]} 38...
Rxa4 {[%clk 0:00:09.9]} 39. Rb3 {[%clk 0:00:22.3]} 39... Ra3 {[%clk 0:00:09.4]}
40. Rxa3 {[%clk 0:00:23.1]} 40... Qxa3 {[%clk 0:00:11.3]} 41. Qxg6 {[%clk
0:00:24.7]} 41... Re2 {[%clk 0:00:04.2]} 42. Qg8 {[%clk 0:00:25.3]} 42... Kb7
{[%clk 0:00:03.9]} 43. Qf7 {[%clk 0:00:22.2]} 43... Qa4 {[%clk 0:00:04.5]} 44.
Qxf5 {[%clk 0:00:23.4]} 44... a5 {[%clk 0:00:05.4]} 45. Qg6 {[%clk 0:00:21.2]}
45... Qa2 {[%clk 0:00:04.5]} 46. Qg7 {[%clk 0:00:21.4]} 46... Ka6 {[%clk
0:00:05.5]} 47. Bf2 {[%clk 0:00:21.5]} 47... Nb8 {[%clk 0:00:05.4]} 48. Qc7
{[%clk 0:00:22.1]} 48... Qxd5 {[%clk 0:00:05.4]} 49. Qxb8 {[%clk 0:00:21.8]}
49... a4 {[%clk 0:00:06]} 50. Qc8+ {[%clk 0:00:22.9]} 50... Kb5 {[%clk 0:00:07]}
51. Rb1+ {[%clk 0:00:23.3]} 51... Kc4 {[%clk 0:00:08.4]} 52. Qa6+ {[%clk
0:00:23.7]} 52... Kxc3 {[%clk 0:00:10]} 53. Qxe2 {[%clk 0:00:24.8]} 1-0

[Event "*** MasterClass Titled Tuesday Blitz"]
[Site "Chess.com"]
[Date "2017.11.07"]
[Round "5"]
[White "nubair1198"]
[Black "AkshatChandra"]
[Result "0-1"]
[WhiteElo "2539"]
[BlackElo "2736"]
[TimeControl "180+2"]
[EndTime "15:15:15 PST"]
[Termination "AkshatChandra won by resignation"]

1. c4 {[%clk 0:03:01.9]} 1... e5 {[%clk 0:03:00.5]} 2. g3 {[%clk 0:03:01.8]}
2... Nc6 {[%clk 0:02:56.5]} 3. Bg2 {[%clk 0:03:03]} 3... g6 {[%clk 0:02:43]} 4.
Nc3 {[%clk 0:03:04.1]} 4... Bg7 {[%clk 0:02:44.3]} 5. Nf3 {[%clk 0:03:03.1]}
5... d6 {[%clk 0:02:45.5]} 6. O-O {[%clk 0:03:04.4]} 6... f5 {[%clk 0:02:46]} 7.
d3 {[%clk 0:03:05.1]} 7... Nf6 {[%clk 0:02:47.1]} 8. Rb1 {[%clk 0:03:06.5]} 8...
O-O {[%clk 0:02:48.7]} 9. b4 {[%clk 0:03:08]} 9... h6 {[%clk 0:02:46.5]} 10. b5
{[%clk 0:03:09.1]} 10... Ne7 {[%clk 0:02:47.9]} 11. a4 {[%clk 0:03:09.7]} 11...
g5 {[%clk 0:02:43.6]} 12. Ba3 {[%clk 0:03:06.8]} 12... Ng6 {[%clk 0:02:41.9]}
13. c5 {[%clk 0:03:07.3]} 13... g4 {[%clk 0:02:40.9]} 14. Nd2 {[%clk 0:03:06.2]}
14... d5 {[%clk 0:02:20.5]} 15. c6 {[%clk 0:03:01.9]} 15... Re8 {[%clk 0:02:22]}
16. Qb3 {[%clk 0:02:56.1]} 16... bxc6 {[%clk 0:02:23.2]} 17. bxc6 {[%clk
0:02:56.5]} 17... Be6 {[%clk 0:02:24.8]} 18. Qb7 {[%clk 0:02:31.1]} 18... a6
{[%clk 0:02:07.5]} 19. Nb3 {[%clk 0:02:20.7]} 19... d4 {[%clk 0:01:58.3]} 20.
Nc5 {[%clk 0:01:48.3]} 20... dxc3 {[%clk 0:01:54.9]} 21. Nxe6 {[%clk 0:01:48.2]}
21... Rxe6 {[%clk 0:01:56.3]} 22. Qb3 {[%clk 0:01:45.8]} 22... Qe8 {[%clk
0:01:53]} 23. Qxc3 {[%clk 0:01:45.4]} 23... e4 {[%clk 0:01:53.3]} 24. Rfc1
{[%clk 0:01:44.7]} 24... Kh7 {[%clk 0:01:49.8]} 25. Rb7 {[%clk 0:01:44.9]} 25...
exd3 {[%clk 0:01:38.3]} 26. exd3 {[%clk 0:01:40.5]} 26... Rc8 {[%clk 0:01:28.9]}
27. h4 {[%clk 0:01:31.7]} 27... Ne4 {[%clk 0:00:51.4]} 28. Qa5 {[%clk
0:01:30.4]} 28... Re5 {[%clk 0:00:37.5]} 29. Qxa6 {[%clk 0:01:22.8]} 29... Nxf2
{[%clk 0:00:38.7]} 30. Rf1 {[%clk 0:00:55]} 30... Re1 {[%clk 0:00:32.8]} 31. Qb5
{[%clk 0:00:48.7]} 31... Rxf1+ {[%clk 0:00:24.2]} 32. Kxf1 {[%clk 0:00:45.8]}
32... Qe3 {[%clk 0:00:25.1]} 33. Qxf5 {[%clk 0:00:45]} 33... Rf8 {[%clk
0:00:26.7]} 34. Bxf8 {[%clk 0:00:44.4]} 34... Nxd3 {[%clk 0:00:19.8]} 35. Rb1
{[%clk 0:00:24.3]} 35... Ne5 {[%clk 0:00:03.7]} 36. Bxg7 {[%clk 0:00:21.2]}
36... Kxg7 {[%clk 0:00:05.6]} 37. h5 {[%clk 0:00:21.2]} 37... Ne7 {[%clk
0:00:04.5]} 38. Qf4 {[%clk 0:00:21.7]} 38... Qd3+ {[%clk 0:00:05.5]} 39. Kf2
{[%clk 0:00:23.1]} 39... Qc2+ {[%clk 0:00:04.5]} 40. Ke3 {[%clk 0:00:18.4]}
40... Nf5+ {[%clk 0:00:05.3]} 41. Qxf5 {[%clk 0:00:16.8]} 41... Qxf5 {[%clk
0:00:07.2]} 42. Be4 {[%clk 0:00:17.8]} 42... Qg5+ {[%clk 0:00:07.9]} 43. Kd4
{[%clk 0:00:18.5]} 43... Nf3+ {[%clk 0:00:09.4]} 44. Kd3 {[%clk 0:00:17.6]}
44... Qd2+ {[%clk 0:00:08.6]} 45. Kc4 {[%clk 0:00:18.9]} 45... Qd4+ {[%clk
0:00:08.6]} 46. Kb5 {[%clk 0:00:20.4]} 46... Qxe4 {[%clk 0:00:10]} 47. Rd1
{[%clk 0:00:21.3]} 47... Qe5+ {[%clk 0:00:09.9]} 48. Ka6 {[%clk 0:00:22]} 48...
Qxg3 {[%clk 0:00:11.8]} 49. Rd7+ {[%clk 0:00:22.2]} 49... Kf6 {[%clk 0:00:12.6]}
50. a5 {[%clk 0:00:24.1]} 50... Qe5 {[%clk 0:00:12]} 51. Kb7 {[%clk 0:00:24.9]}
51... Qxa5 {[%clk 0:00:13.1]} 52. Rxc7 {[%clk 0:00:26.5]} 52... Qxc7+ {[%clk
0:00:14.2]} 53. Kxc7 {[%clk 0:00:27.7]} 53... Ne5 {[%clk 0:00:16]} 54. Kd6
{[%clk 0:00:29.2]} 54... Nxc6 {[%clk 0:00:17.7]} 55. Kxc6 {[%clk 0:00:30.9]}
55... g3 {[%clk 0:00:19]} 56. Kd5 {[%clk 0:00:32.8]} 56... g2 {[%clk 0:00:20.9]}
57. Ke4 {[%clk 0:00:34.7]} 57... g1=Q {[%clk 0:00:22.8]} 58. Kf3 {[%clk
0:00:36.6]} 58... Qg5 {[%clk 0:00:24.7]} 59. Kf2 {[%clk 0:00:37.4]} 59... Qxh5
{[%clk 0:00:26.2]} 60. Kf1 {[%clk 0:00:39.3]} 60... Qh2 {[%clk 0:00:27]} 61. Ke1
{[%clk 0:00:40.6]} 61... Ke5 {[%clk 0:00:28.9]} 0-1

[Event "*** MasterClass Titled Tuesday Blitz"]
[Site "Chess.com"]
[Date "2017.11.07"]
[Round "5"]
[White "severomorskij"]
[Black "chipmunknau"]
[Result "1/2-1/2"]
[WhiteElo "2642"]
[BlackElo "2507"]
[TimeControl "180+2"]
[EndTime "15:15:20 PST"]
[Termination "Game drawn by agreement"]

1. d4 {[%clk 0:03:01.9]} 1... f5 {[%clk 0:02:57.6]} 2. Bg5 {[%clk 0:03:01.5]}
2... g6 {[%clk 0:02:51.8]} 3. Nc3 {[%clk 0:03:00.6]} 3... Bg7 {[%clk 0:02:51.7]}
4. h4 {[%clk 0:03:01.5]} 4... Nf6 {[%clk 0:02:45.3]} 5. h5 {[%clk 0:03:02.2]}
5... Nxh5 {[%clk 0:02:44.8]} 6. e4 {[%clk 0:03:02.1]} 6... Nf6 {[%clk
0:02:36.8]} 7. e5 {[%clk 0:03:02.3]} 7... Ne4 {[%clk 0:02:34.9]} 8. Nxe4 {[%clk
0:02:58.6]} 8... fxe4 {[%clk 0:02:36.8]} 9. Qd2 {[%clk 0:02:44]} 9... c5 {[%clk
0:02:14.3]} 10. Bh6 {[%clk 0:02:26.7]} 10... Bxh6 {[%clk 0:02:13.8]} 11. Qxh6
{[%clk 0:02:27.5]} 11... Qa5+ {[%clk 0:02:02.4]} 12. c3 {[%clk 0:02:27]} 12...
cxd4 {[%clk 0:02:02.8]} 13. Qg7 {[%clk 0:02:27.6]} 13... Rf8 {[%clk 0:02:03.7]}
14. Rxh7 {[%clk 0:02:27.2]} 14... Qc5 {[%clk 0:01:47.7]} 15. Rh8 {[%clk
0:02:08.4]} 15... e6 {[%clk 0:01:47.5]} 16. Qxg6+ {[%clk 0:01:57.5]} 16... Kd8
{[%clk 0:01:47.8]} 17. Qf6+ {[%clk 0:01:56]} 17... Ke8 {[%clk 0:01:48.7]} 18.
Rd1 {[%clk 0:01:33.8]} 18... Nc6 {[%clk 0:01:03.4]} 19. Be2 {[%clk 0:01:31.5]}
19... Rxh8 {[%clk 0:00:51.3]} 20. Qxh8+ {[%clk 0:01:30.3]} 20... Qf8 {[%clk
0:00:53.2]} 21. Bh5+ {[%clk 0:01:14.1]} 21... Ke7 {[%clk 0:00:53.4]} 22. Qxf8+
{[%clk 0:01:14.4]} 22... Kxf8 {[%clk 0:00:55.3]} 23. cxd4 {[%clk 0:01:15.5]}
23... Nb4 {[%clk 0:00:43.5]} 24. Kd2 {[%clk 0:00:58.3]} 24... b6 {[%clk
0:00:39.9]} 25. Nh3 {[%clk 0:00:32.8]} 25... Bb7 {[%clk 0:00:33]} 26. Nf4 {[%clk
0:00:23.8]} 26... Rc8 {[%clk 0:00:27.6]} 27. Rc1 {[%clk 0:00:21]} 27... Rxc1
{[%clk 0:00:28.3]} 28. Kxc1 {[%clk 0:00:22.5]} 28... Nxa2+ {[%clk 0:00:30.2]}
29. Kd2 {[%clk 0:00:23.9]} 29... Nb4 {[%clk 0:00:26.4]} 30. g4 {[%clk
0:00:23.8]} 30... a5 {[%clk 0:00:17.5]} 31. g5 {[%clk 0:00:24.8]} 31... Kg7
{[%clk 0:00:18.1]} 32. Be8 {[%clk 0:00:20.4]} 32... Bc6 {[%clk 0:00:15.3]} 33.
g6 {[%clk 0:00:19]} 33... Kf8 {[%clk 0:00:12.2]} 34. Bf7 {[%clk 0:00:16.7]}
34... Nd5 {[%clk 0:00:08.8]} 35. Nh5 {[%clk 0:00:12]} 35... a4 {[%clk
0:00:08.9]} 36. Nf6 {[%clk 0:00:11.4]} 36... b5 {[%clk 0:00:08.4]} 37. Nxe4
{[%clk 0:00:11.5]} 37... b4 {[%clk 0:00:08.4]} 38. Nc5 {[%clk 0:00:06.9]} 38...
Kg7 {[%clk 0:00:09]} 39. Kc1 {[%clk 0:00:05.7]} 39... Nf4 {[%clk 0:00:07]} 40.
Be8 {[%clk 0:00:06.2]} 40... Ne2+ {[%clk 0:00:06.5]} 41. Kd2 {[%clk 0:00:05.1]}
41... Nxd4 {[%clk 0:00:07]} 42. Bxd7 {[%clk 0:00:05.9]} 42... Bxd7 {[%clk
0:00:07.1]} 43. Nxd7 {[%clk 0:00:07]} 43... Kxg6 {[%clk 0:00:09]} 44. Nc5 {[%clk
0:00:06.7]} 44... a3 {[%clk 0:00:09.5]} 45. bxa3 {[%clk 0:00:07.8]} 45... bxa3
{[%clk 0:00:11.4]} 46. Kc3 {[%clk 0:00:09]} 46... Nc6 {[%clk 0:00:10.2]} 47.
Nxe6 {[%clk 0:00:07.9]} 47... Nxe5 {[%clk 0:00:10.4]} 48. Kb3 {[%clk 0:00:06.6]}
48... Nd3 {[%clk 0:00:10.4]} 49. Kxa3 {[%clk 0:00:06.3]} 49... Nxf2 {[%clk
0:00:10.8]} 1/2-1/2

[Event "*** MasterClass Titled Tuesday Blitz"]
[Site "Chess.com"]
[Date "2017.11.07"]
[Round "5"]
[White "SCIM"]
[Black "Noukii"]
[Result "1-0"]
[WhiteElo "2424"]
[BlackElo "2601"]
[TimeControl "180+2"]
[EndTime "15:15:27 PST"]
[Termination "SCIM won by resignation"]

1. d4 {[%clk 0:03:01.9]} 1... d5 {[%clk 0:02:39.8]} 2. c4 {[%clk 0:03:02.3]}
2... c6 {[%clk 0:02:39.2]} 3. Nf3 {[%clk 0:03:03.3]} 3... Nf6 {[%clk 0:02:40.8]}
4. e3 {[%clk 0:03:04.5]} 4... a6 {[%clk 0:02:38.2]} 5. Bd3 {[%clk 0:02:58.4]}
5... Bg4 {[%clk 0:02:33.2]} 6. O-O {[%clk 0:02:53]} 6... e6 {[%clk 0:02:33.6]}
7. Nbd2 {[%clk 0:02:52.1]} 7... Nbd7 {[%clk 0:02:30.1]} 8. b3 {[%clk 0:02:51.3]}
8... Bd6 {[%clk 0:02:24.6]} 9. Bb2 {[%clk 0:02:48.8]} 9... O-O {[%clk
0:02:25.6]} 10. Qc2 {[%clk 0:02:47.6]} 10... Bh5 {[%clk 0:02:19.1]} 11. Ne5
{[%clk 0:02:41]} 11... Bg6 {[%clk 0:02:15.6]} 12. Nxg6 {[%clk 0:02:21.2]} 12...
hxg6 {[%clk 0:02:17.5]} 13. e4 {[%clk 0:02:17.5]} 13... e5 {[%clk 0:01:41.4]}
14. cxd5 {[%clk 0:01:30.7]} 14... cxd5 {[%clk 0:01:42.5]} 15. exd5 {[%clk
0:01:31.7]} 15... Rc8 {[%clk 0:01:42.8]} 16. Qd1 {[%clk 0:01:28.1]} 16... exd4
{[%clk 0:01:39.9]} 17. Bxd4 {[%clk 0:01:14.2]} 17... Nxd5 {[%clk 0:01:39.6]} 18.
Ne4 {[%clk 0:01:06.6]} 18... Bb8 {[%clk 0:01:37.3]} 19. g3 {[%clk 0:00:53.2]}
19... Ne5 {[%clk 0:01:27.8]} 20. Be2 {[%clk 0:00:47.5]} 20... Nc6 {[%clk
0:01:28.3]} 21. Bb2 {[%clk 0:00:44.1]} 21... Re8 {[%clk 0:01:29.1]} 22. Bf3
{[%clk 0:00:43.4]} 22... Ndb4 {[%clk 0:01:24.6]} 23. Qxd8 {[%clk 0:00:38.3]}
23... Rcxd8 {[%clk 0:01:26.5]} 24. Nc5 {[%clk 0:00:37.6]} 24... b6 {[%clk
0:01:16.2]} 25. Nxa6 {[%clk 0:00:35.2]} 25... Nd3 {[%clk 0:00:41.9]} 26. Bxc6
{[%clk 0:00:31.9]} 26... Re6 {[%clk 0:00:43.5]} 27. Nxb8 {[%clk 0:00:29.2]}
27... Rxb8 {[%clk 0:00:32.5]} 28. Bb5 {[%clk 0:00:29.7]} 28... Nxb2 {[%clk
0:00:33.8]} 29. Rab1 {[%clk 0:00:28.6]} 29... Re5 {[%clk 0:00:35.1]} 30. a4
{[%clk 0:00:29]} 30... Rxb5 {[%clk 0:00:35.2]} 31. axb5 {[%clk 0:00:29.9]} 31...
Nd3 {[%clk 0:00:37.1]} 32. Rfd1 {[%clk 0:00:30.3]} 32... Nc5 {[%clk 0:00:35.5]}
33. Rd6 {[%clk 0:00:29.7]} 33... Ne4 {[%clk 0:00:35.1]} 34. Rc6 {[%clk
0:00:28.2]} 34... Kf8 {[%clk 0:00:36.1]} 35. Re1 {[%clk 0:00:28.1]} 35... Nc5
{[%clk 0:00:34.8]} 36. b4 {[%clk 0:00:26.8]} 36... Ne6 {[%clk 0:00:34.3]} 37.
Re4 {[%clk 0:00:23.7]} 37... Ke7 {[%clk 0:00:33.2]} 38. Kg2 {[%clk 0:00:24.1]}
38... Kd7 {[%clk 0:00:31.1]} 39. Rec4 {[%clk 0:00:24.6]} 39... Rb7 {[%clk
0:00:32]} 40. h4 {[%clk 0:00:25.3]} 40... Nc7 {[%clk 0:00:32.1]} 41. Rd4+ {[%clk
0:00:23.4]} 41... Ke7 {[%clk 0:00:32.9]} 42. Re4+ {[%clk 0:00:24.3]} 42... Kd7
{[%clk 0:00:33.9]} 43. Rf4 {[%clk 0:00:24.6]} 43... Ke7 {[%clk 0:00:28.2]} 44.
Rc1 {[%clk 0:00:19.2]} 44... Nxb5 {[%clk 0:00:26.4]} 45. Re1+ {[%clk 0:00:20.7]}
45... Kd6 {[%clk 0:00:25.1]} 46. Re8 {[%clk 0:00:21.4]} 46... Rd7 {[%clk
0:00:22.8]} 47. Rg8 {[%clk 0:00:21.7]} 47... Ke6 {[%clk 0:00:18.3]} 48. Re8+
{[%clk 0:00:20.3]} 48... Kd6 {[%clk 0:00:19.1]} 49. Rg8 {[%clk 0:00:21.1]} 49...
Ke6 {[%clk 0:00:20.7]} 50. Rxg7 {[%clk 0:00:21.9]} 50... Nd6 {[%clk 0:00:22.6]}
51. Rg8 {[%clk 0:00:22.1]} 51... b5 {[%clk 0:00:23.6]} 52. Rb8 {[%clk
0:00:22.1]} 52... Rc7 {[%clk 0:00:24.5]} 53. Rb6 {[%clk 0:00:22.8]} 53... Ke5
{[%clk 0:00:26.1]} 54. Rf3 {[%clk 0:00:21.5]} 54... Rc4 {[%clk 0:00:27.3]} 55.
Re3+ {[%clk 0:00:21.4]} 55... Kd5 {[%clk 0:00:24]} 56. Rd3+ {[%clk 0:00:21.9]}
1-0